bitfinex/quotes_ETHUSD_20250813
["timestamp","ask_amount","ask_price","bid_price","bid_amount"]
[1755098727278,2.9399,4647.8,4647.7,8.645]
[1755098728474,3.0,4648.2,4647.7,8.645]
[1755098728676,2.9399,4648.1,4647.7,8.645]
[1755098728980,3.53389,4648.0,4647.7,8.645]
[1755098729163,2.9399,4648.0,4647.7,8.6458]
[1755098729674,0.0204,4648.4,4647.7,8.6458]
[1755098729675,3.0,4647.8,4647.7,8.6458]
[1755098730076,0.4717,4647.8,4647.7,8.6458]
[1755098730382,0.644893,4648.2,4647.7,8.6458]
[1755098730554,0.0204,4648.4,4647.7,5.1578]
[1755098730753,0.49414267,4648.3,4647.7,5.1578]
[1755098730982,3.0,4648.2,4647.7,5.1578]
[1755098731175,0.085984,4648.3,4647.8,3.487]
[1755098731377,2.7995,4648.2,4647.8,3.487]
[1755098731685,3.0,4648.0,4647.8,3.487]
[1755098731853,2.7995,4647.9,4647.8,3.487]
[1755098732178,3.0,4647.8,4647.7,5.1578]
[1755098732419,0.1072,4647.9,4647.7,8.6448]
[1755098732584,2.7995,4647.8,4647.7,5.1578]
[1755098732786,3.11485694,4647.8,4647.7,8.6448]
[1755098732968,3.66485694,4647.8,4647.7,8.6448]
[1755098733281,3.66485694,4647.8,4647.7,5.1578]
[1755098733487,3.66485694,4647.8,4647.7,8.6448]
[1755098733783,3.66485694,4647.8,4647.7,8.6438]
[1755098735195,6.66485694,4647.8,4647.7,8.6438]
[1755098735392,7.28753227,4647.8,4647.7,5.1578]
[1755098735601,6.73753227,4647.8,4647.7,8.6438]
[1755098735906,3.55,4647.7,4647.3,0.001]
[1755098736053,0.02244267,4647.6,4647.4,3.486]
[1755098736278,6.3495,4647.5,4647.4,3.486]
[1755098736479,6.65596716,4647.5,4647.4,3.486]
[1755098736704,7.48381443,4647.5,4647.4,3.486]
[1755098736909,7.94276485,4647.5,4647.4,3.486]
[1755098737291,7.48381443,4647.5,4647.4,3.486]
[1755098737812,7.48362455,4647.5,4647.4,3.486]
[1755098738119,0.55,4647.4,4647.3,0.001]
[1755098738433,6.92750474,4647.4,4647.3,3.486]
[1755098738721,6.90506207,4647.4,4647.3,3.486]
[1755098739094,6.90506207,4647.4,4647.3,0.001]
[1755098739312,6.90506207,4647.4,4647.3,3.486]
[1755098739512,7.10405817,4647.4,4647.3,3.486]
[1755098739958,11.98627486,4647.4,4647.0,0.001]
[1755098740078,0.55,4647.0,4646.6,5.2324]
[1755098740276,0.658,4646.7,4646.6,5.2324]
[1755098740492,3.55,4646.6,4646.0,0.001]
[1755098740688,0.55,4646.4,4646.1,3.485]
[1755098740893,2.70234282,4646.1,4646.0,0.001]
[1755098741196,0.77133828,4646.1,4646.0,0.001]
[1755098741387,8.71834349,4646.1,4646.0,0.001]
[1755098741588,9.3431585,4646.1,4646.0,0.001]
[1755098741809,9.3431585,4646.1,4645.1,0.02]
[1755098741810,0.55,4645.9,4645.1,0.02]
[1755098742125,2.28292448,4645.8,4645.7,3.484]
[1755098742283,6.03182009,4645.8,4645.7,3.484]
[1755098742614,0.55,4645.5,4645.1,0.02]
[1755098742818,0.658,4645.2,4645.1,0.02]
[1755098742982,0.80348694,4645.2,4645.1,0.02]
[1755098743182,0.55,4645.1,4644.9,5.158]
[1755098743411,4.5452,4645.1,4644.9,5.158]
[1755098743585,1.11842298,4645.7,4644.9,5.158]
[1755098743586,0.55,4645.5,4645.0,3.484]
[1755098743796,0.55,4645.3,4645.0,3.484]
[1755098743988,0.108,4645.1,4645.0,3.484]
[1755098744213,0.108,4645.1,4644.9,5.158]
[1755098744515,0.21953728,4645.1,4645.0,3.484]
[1755098745029,3.53722923,4645.0,4643.5,0.4645]
[1755098745183,2.35128272,4644.9,4643.5,0.4645]
[1755098745507,0.108,4644.2,4643.5,0.4645]
[1755098745905,0.108,4644.2,4643.6,2.4575]
[1755098746212,0.108,4644.2,4644.1,0.4845]
[1755098746517,0.658,4644.2,4644.1,0.02]
[1755098746715,0.658,4644.2,4644.1,3.504]
[1755098747018,0.108,4644.2,4644.1,6.426]
[1755098747787,0.1639353,4645.8,4644.1,6.426]
[1755098747987,0.108,4644.2,4644.1,3.504]
[1755098748498,0.108,4644.2,4644.1,3.9685]
[1755098748701,0.108,4644.2,4644.1,6.426]
[1755098748902,0.1072,4644.2,4644.1,6.426]
[1755098749227,0.108,4644.2,4644.1,7.0694]
[1755098751099,0.086058,4646.1,4644.1,7.0694]
[1755098751319,0.086058,4646.1,4644.2,2.922]
[1755098751721,0.086058,4646.1,4644.3,0.4645]
[1755098751917,0.086058,4646.1,4644.4,2.4575]
[1755098752224,0.086058,4646.1,4644.5,4.2397]
[1755098752572,0.2496443,4646.1,4644.5,4.2397]
[1755098752716,0.086058,4646.1,4644.5,3.7752]
[1755098753075,0.086058,4646.1,4644.6,2.922]
[1755098753562,0.086058,4646.1,4644.7,9.1075]
[1755098753762,0.086058,4646.1,4644.8,1.1565]
[1755098753935,0.086058,4646.1,4644.9,2.922]
[1755098754119,0.086058,4646.1,4645.0,0.4645]
[1755098754321,0.086058,4646.1,4645.1,2.4575]
[1755098754658,0.086058,4646.1,4645.2,3.9465]
[1755098754866,0.086058,4646.1,4645.2,4.58698]
[1755098755160,0.086058,4646.1,4645.0,0.0008]
[1755098755161,0.086058,4646.1,4645.3,6.403]
[1755098755362,0.086058,4646.1,4645.3,5.9385]
[1755098755517,0.086058,4646.1,4645.4,0.4645]
[1755098755818,0.086058,4646.1,4645.5,3.481]
[1755098756017,0.086058,4646.1,4645.6,2.922]
[1755098756561,0.086058,4646.1,4645.7,0.4645]
[1755098757037,0.15955985,4646.5,4645.7,0.4645]
[1755098757038,0.02,4647.4,4645.8,2.4575]
[1755098757238,0.02,4647.4,4645.9,0.4645]
[1755098757422,0.15956,4646.4,4646.0,5.9375]
[1755098757622,0.15956,4646.4,4646.1,2.922]
[1755098758041,0.15956,4646.4,4646.2,2.922]
[1755098758536,0.16271679,4647.0,4646.3,0.4645]
[1755098758719,0.55,4646.5,4646.4,2.4575]
[1755098759051,0.02,4647.4,4646.4,6.402]
[1755098759248,0.55,4647.3,4646.5,0.4645]
[1755098759451,0.55,4647.3,4646.6,2.4575]
[1755098759819,0.55,4647.3,4646.7,0.4419]
[1755098760025,0.55,4647.3,4646.8,7.5413]
[1755098760219,0.55,4647.3,4646.9,6.3022]
[1755098760626,0.02,4647.4,4647.0,2.8232]
[1755098760950,0.02,4647.4,4647.0,3.96942]
[1755098761251,0.02,4647.4,4647.1,0.4419]
[1755098761450,0.552,4648.3,4647.2,0.57151833]
[1755098761657,0.552,4648.3,4647.3,6.3022]
[1755098761833,0.002,4648.3,4647.4,2.8232]
[1755098762030,0.002,4648.3,4647.5,0.63022]
[1755098762236,0.002,4648.3,4647.5,1.07212]
[1755098762554,0.002,4647.9,4647.6,2.8232]
[1755098762732,0.002,4647.9,4647.7,3.478]
[1755098763060,0.002,4647.9,4647.7,3.9199]
[1755098763368,0.002,4647.9,4647.8,6.3012]
[1755098763569,0.0012,4647.9,4647.8,6.3012]
[1755098764248,0.0012,4647.9,4647.8,3.477]
[1755098764448,0.0012,4647.9,4647.8,6.3002]
[1755098764761,0.002,4648.3,4647.8,6.3002]
[1755098764945,0.002,4648.3,4647.9,6.3002]
[1755098765458,0.002,4648.3,4648.0,2.8232]
[1755098765657,0.002,4648.3,4647.8,0.0008]
[1755098765956,0.002,4648.3,4648.1,3.477]
[1755098766149,0.002,4648.3,4647.8,0.4427]
[1755098766346,0.002,4648.3,4647.9,6.2992]
[1755098766753,0.002,4648.3,4648.0,2.8232]
[1755098767151,0.002,4648.3,4648.0,2.3813]
[1755098767336,0.002,4648.3,4648.1,6.2992]
[1755098767540,0.002,4648.3,4647.8,0.0008]
[1755098767846,0.002,4648.3,4646.8,5.16]
[1755098767847,0.238,4648.3,4647.9,3.475]
[1755098768047,0.238,4648.3,4648.0,3.475]
[1755098768048,0.002,4648.3,4648.0,3.475]
[1755098769367,0.002,4648.3,4648.1,0.4419]
[1755098769541,0.002,4648.3,4648.1,2.8232]
[1755098769858,0.002,4648.3,4648.2,0.4419]
[1755098770037,0.002,4648.3,4648.2,2.8232]
[1755098770238,0.002,4648.3,4648.2,2.824]
[1755098771331,0.002,4648.3,4648.2,0.0008]
[1755098771527,0.002,4648.3,4648.2,3.4748]
[1755098772441,0.002,4648.3,4648.2,6.298]
[1755098772646,0.002,4648.3,4648.2,3.4748]
[1755098772859,0.002,4648.3,4648.2,0.0008]
[1755098773372,0.002,4648.3,4647.7,0.4419]
[1755098773575,0.002,4648.3,4647.2,0.4419]
[1755098773780,0.002,4648.3,4647.3,3.473]
[1755098773982,0.002,4648.3,4647.2,0.4419]
[1755098774165,0.002,4648.3,4647.3,3.473]
[1755098774355,0.002,4648.3,4647.3,5.8543]
[1755098774551,0.002,4648.3,4647.4,0.4419]
[1755098775444,0.002,4648.3,4647.4,0.0008]
[1755098775844,0.002,4648.3,4647.5,3.472]
[1755098776039,0.002,4648.3,4647.6,3.472]
[1755098776281,0.002,4648.3,4647.4,0.0008]
[1755098776654,0.002,4648.3,4647.5,3.472]
[1755098777669,0.002,4648.3,4647.0,0.4419]
[1755098777866,0.7879,4648.2,4647.1,3.472]
[1755098778070,0.20443327,4648.1,4647.1,3.472]
[1755098778884,0.20443327,4648.1,4647.2,3.471]
[1755098779060,0.552,4648.2,4647.2,3.471]
[1755098779456,0.552,4648.2,4647.3,2.8232]
[1755098779961,0.552,4648.2,4647.4,0.4419]
[1755098780782,0.552,4648.2,4647.4,0.4427]
[1755098780987,0.552,4648.2,4647.5,8.628]
[1755098781985,0.552,4648.2,4647.6,2.8232]
[1755098782183,0.552,4648.2,4647.7,0.4419]
[1755098782499,0.552,4648.2,4647.8,2.8232]
[1755098782975,0.552,4648.2,4647.9,2.8232]
[1755098783143,0.552,4648.2,4647.5,5.157]
[1755098783350,0.002,4648.3,4647.5,5.157]
[1755098783978,0.002,4648.3,4647.6,3.47]
[1755098784364,0.002,4648.3,4647.5,5.157]
[1755098784654,0.002,4648.3,4647.6,3.47]
[1755098785382,0.002,4648.3,4647.7,3.469]
[1755098785767,0.002,4648.3,4647.8,3.469]
[1755098786089,0.002,4648.3,4647.9,3.469]
[1755098786488,0.002,4648.3,4648.0,0.4419]
[1755098786689,0.002,4648.3,4647.9,5.8503]
[1755098786991,0.002,4648.3,4647.9,3.469]
[1755098787157,0.002,4648.3,4648.0,2.8232]
[1755098787502,0.002,4648.3,4647.8,0.0008]
[1755098787654,0.002,4648.3,4647.9,3.468]
[1755098787851,0.002,4648.3,4648.0,3.468]
[1755098788800,0.002,4648.3,4648.1,3.468]
[1755098789177,0.23963271,4648.3,4648.1,3.468]
[1755098789376,0.23963271,4648.3,4647.5,0.001]
[1755098789577,0.23963271,4648.3,4647.6,8.626]
[1755098790414,0.23963271,4648.3,4647.7,3.468]
[1755098790719,0.23963271,4648.3,4647.7,3.9173]
[1755098791184,0.23963271,4648.3,4647.8,3.467]
[1755098791374,0.23963271,4648.3,4647.7,0.0008]
[1755098791574,0.23963271,4648.3,4647.9,3.467]
[1755098791981,0.23963271,4648.3,4647.9,3.9163]
[1755098792393,0.23963271,4648.3,4647.9,3.467]
[1755098793318,0.002,4648.3,4647.9,3.467]
[1755098793521,0.002,4648.3,4647.9,6.2417]
[1755098793879,0.002,4648.3,4648.0,0.4493]
[1755098794079,0.002,4648.3,4647.9,5.7924]
[1755098794512,0.002,4648.3,4647.9,3.467]
[1755098795086,0.002,4648.3,4648.0,3.466]
[1755098796103,3.7879,4648.3,4647.7,0.0008]
[1755098796423,3.55,4648.1,4647.8,3.466]
[1755098796627,0.20013662,4648.0,4647.8,3.466]
[1755098796924,0.98776933,4648.2,4647.8,3.466]
[1755098797107,0.55,4648.1,4647.8,3.4668]
[1755098797317,0.69692073,4648.1,4647.8,3.4668]
[1755098798016,0.69692073,4648.1,4647.9,3.465]
[1755098798191,0.69692073,4648.1,4647.8,0.0008]
[1755098798511,0.69692073,4648.1,4647.9,3.465]
[1755098798699,0.11366901,4648.0,4647.6,5.158]
[1755098799009,0.11366901,4648.0,4647.7,3.465]
[1755098799183,0.31380563,4648.0,4647.7,3.465]
[1755098799383,0.11366901,4648.0,4647.7,3.465]
[1755098799579,0.6572,4647.8,4647.6,5.158]
[1755098799802,0.6572,4647.8,4647.7,3.465]
[1755098799989,0.6564,4647.8,4647.7,3.465]
[1755098800782,0.95553662,4647.8,4647.7,3.465]
[1755098800989,0.95558686,4647.8,4647.7,3.465]
[1755098801189,4.90187474,4647.8,4647.7,3.465]
[1755098801417,2.36091267,4647.8,4647.7,3.465]
[1755098801715,1.80287474,4647.8,4647.7,3.465]
[1755098801900,1.09422883,4647.8,4647.7,3.465]
[1755098802302,1.67040212,4647.8,4647.7,3.4658]
[1755098802604,0.85659612,4647.8,4647.7,3.4658]
[1755098802806,1.23257329,4647.8,4647.7,0.0008]
[1755098803006,1.42957329,4647.8,4647.7,3.463]
[1755098803185,0.55,4647.6,4647.5,0.001]
[1755098803516,0.75019612,4647.6,4647.5,0.001]
[1755098803738,0.55,4647.3,4647.0,0.001]
[1755098803885,0.55,4647.3,4646.7,0.001]
[1755098803886,3.55,4647.1,4646.7,0.001]
[1755098804085,0.55,4646.7,4646.0,0.001]
[1755098804306,0.78763271,4646.7,4646.1,3.463]
[1755098804584,0.78763271,4646.7,4645.5,0.4493]
[1755098804905,0.55,4646.5,4645.1,2.3454]
[1755098805109,0.55,4646.3,4645.0,5.158]
[1755098805295,3.55,4646.1,4644.3,5.158]
[1755098805487,0.55,4645.9,4644.3,5.158]
[1755098805815,0.55,4646.0,4644.4,3.463]
[1755098806114,0.74975807,4646.0,4644.4,3.463]
[1755098806427,0.55,4645.8,4644.5,3.463]
[1755098806831,0.74975807,4645.8,4644.6,0.4493]
[1755098806989,0.55,4645.6,4644.6,0.4493]
[1755098807603,0.55,4645.4,4644.6,0.0008]
[1755098807934,0.55,4645.4,4644.7,3.462]
[1755098808092,3.74975807,4645.4,4644.8,3.462]
[1755098808288,0.55,4645.2,4644.8,3.462]
[1755098808924,0.55,4645.5,4644.8,3.462]
[1755098809123,0.55,4645.6,4644.8,3.462]
[1755098809824,3.55,4645.4,4644.9,3.462]
[1755098809988,3.55,4645.4,4644.6,0.0008]
[1755098809989,3.55,4645.2,4644.6,0.0008]
[1755098810191,0.55,4645.0,4644.7,3.462]
[1755098810522,3.78763271,4645.0,4644.6,0.0018]
[1755098810835,0.55,4644.8,4644.7,3.462]
[1755098811187,0.74842649,4645.2,4644.7,3.462]
[1755098811398,0.55,4645.2,4644.6,0.0018]
[1755098811605,0.55,4645.2,4644.7,3.461]
[1755098811925,0.55,4645.0,4644.7,3.461]
[1755098812729,0.55,4645.4,4644.8,3.462]
[1755098812931,4.0023,4644.9,4644.8,0.0008]
[1755098813231,6.15439887,4644.9,4644.8,3.4618]
[1755098813395,3.55,4644.7,4644.6,3.462]
[1755098813595,8.47108,4644.7,4644.6,0.001]
[1755098813795,9.57599753,4644.7,4644.6,0.001]
[1755098814135,2.262,4644.4,4644.1,0.021]
[1755098814302,5.70322337,4644.2,4644.1,0.021]
[1755098814498,4.44219655,4644.2,4644.1,0.021]
[1755098814831,8.92771992,4644.2,4644.1,0.021]
[1755098815054,11.64934056,4644.2,4644.1,0.021]
[1755098815228,9.61913273,4644.2,4644.1,0.021]
[1755098816122,11.88113273,4644.2,4644.1,0.021]
[1755098817335,15.34113273,4644.2,4644.1,0.021]
[1755098817909,17.9865166,4644.2,4644.1,0.021]
[1755098818127,12.04414108,4644.2,4644.1,0.0218]
[1755098819242,11.84598537,4644.2,4644.1,0.0218]
[1755098819446,12.04316221,4644.2,4644.1,0.0218]
[1755098819946,11.84598537,4644.2,4644.1,0.0218]
[1755098820145,12.04311681,4644.2,4644.1,0.0218]
[1755098820525,4.84329344,4644.2,4644.1,0.0218]
[1755098820725,0.83688531,4644.2,4644.1,0.0218]
[1755098820916,0.16300835,4644.2,4644.1,0.0218]
[1755098821116,0.086104,4644.3,4644.1,0.0218]
[1755098821521,2.70322337,4644.2,4644.1,0.0218]
[1755098821738,11.2539369,4644.2,4644.1,0.0218]
[1755098821943,12.28416505,4644.2,4644.1,0.0218]
[1755098822116,14.18652196,4644.2,4644.1,0.0218]
[1755098822321,11.45735263,4644.2,4643.4,0.001]
[1755098822599,1.844,4643.2,4636.6,0.001]
[1755098822724,5.70415104,4642.2,4641.1,0.4941]
[1755098822923,3.74718082,4642.2,4641.7,0.4731]
[1755098823125,3.5718989,4642.2,4642.1,2.9348]
[1755098823426,3.0,4642.2,4642.1,6.3948]
[1755098824162,3.108,4642.2,4642.1,6.3948]
[1755098824460,0.108,4642.2,4642.1,6.3948]
[1755098826564,0.108,4642.2,4642.1,6.3938]
[1755098828830,0.108,4642.2,4642.1,2.9348]
[1755098829031,0.108,4642.2,4642.1,2.9356]
[1755098829463,0.108,4642.2,4642.1,6.3936]
[1755098832032,0.658,4642.2,4642.1,3.4798]
[1755098832584,0.30565882,4642.2,4642.1,6.3936]
[1755098832735,0.108,4642.2,4642.1,6.3936]
[1755098833476,0.30626312,4642.2,4642.1,6.3936]
[1755098833656,0.108,4642.2,4642.1,6.3936]
[1755098833870,0.108,4642.2,4642.1,6.97907131]
[1755098835568,0.108,4642.2,4642.1,6.3936]
[1755098835881,0.30626312,4642.2,4642.1,6.3936]
[1755098836185,0.30626312,4642.2,4642.1,6.3926]
[1755098836356,0.30666159,4642.2,4642.1,6.3926]
[1755098837381,0.30666159,4642.2,4642.1,6.3916]
[1755098837683,0.30666159,4642.2,4642.1,0.0218]
[1755098837848,0.30666159,4642.2,4642.1,3.4778]
[1755098838951,0.30586159,4642.2,4642.1,3.4778]
[1755098839380,0.30626923,4642.2,4642.1,3.4778]
[1755098839953,0.30628278,4642.2,4642.1,3.4778]
[1755098840386,0.87391856,4642.2,4642.1,3.4778]
[1755098840866,0.46935941,4642.2,4642.1,3.4778]
[1755098841259,1.22620711,4642.2,4642.1,3.4778]
[1755098842086,1.22635368,4642.2,4642.1,0.0218]
[1755098842273,0.92830244,4642.2,4642.1,3.4768]
[1755098843453,2.06651803,4642.2,4642.1,3.4768]
[1755098843685,0.92830244,4642.2,4642.1,3.4768]
[1755098844283,0.92830244,4642.2,4642.1,0.0218]
[1755098844476,0.92830244,4642.2,4642.1,3.4758]
[1755098845357,0.76522581,4642.2,4642.1,3.4758]
[1755098845655,1.07238128,4642.2,4642.1,3.4758]
[1755098846052,0.76522581,4642.2,4642.1,3.4758]
[1755098846280,0.76522581,4642.2,4642.1,0.0218]
[1755098846461,0.76522581,4642.2,4642.1,3.4758]
[1755098846652,0.49677349,4642.2,4642.1,3.4758]
[1755098846852,1.50556995,4642.2,4642.1,3.4758]
[1755098847087,1.50556995,4642.2,4642.1,0.0218]
[1755098847088,1.97876995,4642.2,4642.1,0.0218]
[1755098847252,5.64378554,4642.2,4642.1,3.4758]
[1755098847653,4.50556995,4642.2,4642.1,3.4758]
[1755098848896,4.50577555,4642.2,4642.1,3.4758]
[1755098849301,4.50577434,4642.2,4642.1,3.4758]
[1755098849611,3.30663374,4642.2,4642.1,6.2891]
[1755098850115,3.30743374,4642.2,4642.1,6.2891]
[1755098850314,0.30743374,4642.2,4642.1,6.2891]
[1755098851006,0.108,4642.2,4642.1,6.2891]
[1755098851205,0.1072,4642.2,4642.1,6.2891]
[1755098851410,0.1072,4642.2,4642.1,7.43431]
[1755098853615,0.002,4642.7,4642.1,7.54231]
[1755098853812,0.002,4642.7,4642.2,2.83484151]
[1755098854112,0.002,4642.7,4642.2,2.8133]
[1755098854288,0.002,4642.7,4642.3,4.403631]
[1755098854813,0.002,4642.7,4642.4,2.8133]
[1755098855184,0.002,4642.7,4642.5,0.4456]
[1755098855397,0.002,4642.7,4642.6,3.452]
[1755098855598,0.002,4642.7,4642.6,5.8197]
[1755098855918,0.002,4642.7,4642.6,6.9424331]
[1755098856524,0.002,4642.7,4642.6,6.2643]
[1755098856818,0.11,4642.7,4642.6,6.2643]
[1755098857032,0.002,4642.7,4642.6,6.2643]
[1755098857690,0.002,4642.7,4642.6,6.3723]
[1755098857990,0.002,4642.7,4642.6,6.9223]
[1755098858328,0.002,4642.7,4642.6,7.6543331]
[1755098858622,0.002,4642.7,4642.6,10.6543331]
[1755098858991,0.002,4642.7,4642.6,10.6551331]
[1755098866132,0.002,4642.7,4642.6,12.80909855]
[1755098867612,0.002,4642.7,4642.6,10.6551331]
[1755098867820,0.002,4642.7,4642.6,10.1001331]
[1755098868430,0.002,4642.7,4642.6,10.6501331]
[1755098868962,0.0012,4642.7,4642.6,10.6501331]
[1755098870231,0.0012,4642.7,4642.6,10.1001331]
[1755098870556,0.0012,4642.7,4642.6,4.3908331]
[1755098870728,0.0012,4642.7,4642.6,7.8368331]
[1755098871051,0.0012,4642.7,4642.6,0.8408331]
[1755098871357,0.0012,4642.7,4642.6,0.0008]
[1755098871545,0.5408,4642.7,4642.6,3.4458]
[1755098871858,0.1092,4642.7,4642.6,3.4458]
[1755098874758,0.1092,4642.7,4642.6,0.0008]
[1755098875056,2.9966,4642.7,4642.6,3.4448]
[1755098876051,0.5408,4642.7,4642.6,3.4448]
[1755098876270,0.1092,4642.7,4642.6,3.4448]
[1755098876975,0.0012,4642.7,4642.6,3.4448]
[1755098877358,0.0012,4642.7,4642.6,6.2581]
[1755098877667,0.0012,4642.7,4642.6,6.3661]
[1755098878159,0.0012,4642.7,4642.6,3.5528]
[1755098878528,0.0012,4642.7,4642.6,3.9984]
[1755098878959,0.0012,4642.7,4642.6,3.5528]
[1755098879181,0.0012,4642.7,4642.6,0.0008]
[1755098879339,2.9966,4642.7,4642.6,0.0008]
[1755098879692,3.29626,4642.7,4642.6,0.0008]
[1755098879834,6.29626,4642.7,4642.6,3.4438]
[1755098880201,6.29626,4642.7,4642.6,0.0008]
[1755098880331,6.29626,4642.7,4642.6,3.443]
[1755098880640,6.29626,4642.7,4642.6,3.4438]
[1755098881253,6.29546,4642.7,4642.6,3.4438]
[1755098882172,6.29546,4642.7,4642.6,0.0008]
[1755098882374,6.84546,4642.7,4642.6,0.0008]
[1755098882552,7.20461947,4642.7,4642.6,3.442]
[1755098882755,7.77276086,4642.7,4642.6,3.442]
[1755098882962,6.65461947,4642.7,4642.6,3.442]
[1755098883151,7.20461947,4642.7,4642.6,3.442]
[1755098884194,0.55,4642.6,4642.1,0.021]
[1755098884395,3.45629547,4642.7,4642.2,3.442]
[1755098884396,0.55,4642.4,4642.2,3.442]
[1755098884547,2.4515,4642.3,4642.2,3.442]
[1755098884743,6.86225,4642.3,4642.2,3.442]
[1755098885488,3.86225,4642.3,4642.2,3.442]
[1755098885788,6.86225,4642.3,4642.2,0.0008]
[1755098885946,7.05993989,4642.3,4642.2,0.0008]
[1755098886153,6.86225,4642.3,4642.2,0.0008]
[1755098886350,7.51523277,4642.3,4642.2,3.4418]
[1755098886561,7.05983317,4642.3,4642.2,3.4418]
[1755098887370,7.05956894,4642.3,4642.2,0.0008]
[1755098887564,7.05956894,4642.3,4642.2,3.4428]
[1755098888803,6.31225,4642.3,4642.2,3.4428]
[1755098888984,0.30015,4642.3,4642.2,3.4428]
[1755098889189,0.16123547,4642.7,4642.2,3.4428]
[1755098889359,0.4526,4642.6,4642.2,3.4428]
[1755098890085,0.4526,4642.6,4642.3,3.441]
[1755098890296,0.4526,4642.6,4642.2,0.0008]
[1755098890494,0.0004,4642.7,4642.2,0.0008]
[1755098890670,0.0004,4642.7,4642.3,3.441]
[1755098891001,0.0004,4642.7,4642.4,3.441]
[1755098891190,0.453,4642.7,4642.4,3.441]
[1755098891391,0.0004,4642.7,4642.4,3.441]
[1755098891974,0.0004,4642.7,4642.3,0.0008]
[1755098892175,3.4526,4642.6,4642.3,0.0008]
[1755098892376,6.49455,4642.5,4642.4,3.441]
[1755098892600,3.0,4642.4,4642.3,0.0008]
[1755098892816,2.9041,4642.4,4642.3,3.4418]
[1755098893114,5.9041,4642.4,4642.3,3.4418]
[1755098893315,7.11461006,4642.4,4642.3,3.4418]
[1755098894319,9.2686683,4642.4,4642.3,3.4418]
[1755098894481,9.4656132,4642.4,4642.3,3.4418]
[1755098895003,7.31155496,4642.4,4642.3,3.4418]
[1755098896391,7.31155496,4642.4,4642.3,3.4408]
[1755098896606,4.40825496,4642.4,4642.3,3.4408]
[1755098896780,7.11541006,4642.4,4642.3,3.4408]
[1755098896979,7.3123279,4642.4,4642.3,3.4408]
[1755098898050,4.8608279,4642.4,4642.3,3.4408]
[1755098898948,7.4203279,4642.4,4642.3,3.4408]
[1755098899247,10.02813535,4642.4,4642.3,3.4398]
[1755098899747,9.96034535,4642.4,4642.3,3.4398]
[1755098900458,5.35478711,4642.4,4642.3,3.4398]
[1755098900645,4.90218711,4642.4,4642.3,3.4398]
[1755098901370,0.30491784,4642.4,4642.3,3.4398]
[1755098901553,0.108,4642.4,4642.3,3.4398]
[1755098902166,6.5621,4642.4,4642.3,3.4398]
[1755098902323,7.21315094,4642.4,4642.3,3.4398]
[1755098902523,4.1121331,4642.4,4642.3,3.4398]
[1755098902731,3.73228648,4642.4,4642.3,3.4398]
[1755098903045,3.30517311,4642.4,4642.3,3.8792]
[1755098903441,3.3052333,4642.4,4642.3,3.4398]
[1755098904742,0.3052333,4642.4,4642.3,3.4398]
[1755098905053,0.108,4642.4,4642.3,3.4398]
[1755098905562,0.1072,4642.4,4642.3,3.4398]
[1755098905760,0.1072,4642.4,4642.3,3.8792]
[1755098905961,0.15900064,4642.7,4642.3,6.2251]
[1755098906147,0.108,4642.4,4642.3,3.4398]
[1755098907731,0.108,4642.4,4642.1,0.021]
[1755098907955,0.108,4642.4,4642.2,3.437]
[1755098908159,3.4526,4642.3,4641.6,0.001]
[1755098908361,0.108,4641.8,4641.6,0.001]
[1755098909156,0.108,4641.8,4641.7,3.438]
[1755098910148,0.108,4641.8,4641.6,0.001]
[1755098911285,0.108,4641.8,4641.7,3.437]
[1755098911486,0.55,4641.7,4639.0,5.165]
[1755098911649,1.11983864,4640.9,4639.4,0.4502]
[1755098911855,0.108,4640.2,4639.4,0.4502]
[1755098912083,0.108,4640.2,4640.1,3.456]
[1755098912583,0.575,4640.2,4639.0,5.165]
[1755098912761,0.16948386,4640.1,4639.0,5.165]
[1755098913860,0.87840858,4640.1,4640.0,3.436]
[1755098914187,0.87840858,4640.1,4639.0,5.165]
[1755098914948,0.87840858,4640.1,4639.1,0.4702]
[1755098915581,0.87840858,4640.1,4640.0,3.436]
[1755098915989,0.87840858,4640.1,4639.1,0.4702]
[1755098915990,0.87840858,4640.1,4639.1,0.02]
[1755098916198,0.16384589,4640.0,4639.1,0.02]
[1755098916349,0.71384589,4640.0,4639.1,0.02]
[1755098917655,0.71384589,4640.0,4639.9,3.437]
[1755098917984,0.55,4639.7,4639.4,0.001]
[1755098918188,0.55,4639.6,4639.4,0.001]
[1755098918391,0.658,4639.5,4639.4,0.001]
[1755098919184,0.658,4639.5,4639.4,0.0018]
[1755098919769,0.658,4639.5,4639.4,3.4378]
[1755098920167,0.108,4639.5,4639.4,3.4378]
[1755098921255,0.108,4639.5,4639.4,3.888]
[1755098921495,0.108,4639.5,4639.4,6.1597]
[1755098921671,0.108,4639.5,4639.4,3.4378]
[1755098922177,0.108,4639.5,4639.4,6.1597]
[1755098922583,0.108,4639.5,4639.4,3.4378]
[1755098922792,0.108,4639.5,4639.4,3.4368]